[Event "European Women-ch 2023"]
[Site "Petrovac"]
[Date "2023.03.20"]
[Round "3.12"]
[White "Bakalarz, Grazyna"]
[Black "Hrescak, Ivana"]
[Result "1/2-1/2"]
[ECO "B22"]
[WhiteElo "1847"]
[BlackElo "2127"]
[Annotator "TA"]
[PlyCount "99"]
[EventDate "2023.03.15"]
[EventType "swiss"]
[EventCountry "MNE"]
[SourceTitle "playchess.com"]
[Source "ChessBase"]
[SourceQuality "1"]
[TimeControl "40/5400+30:1800+30"]

{[%evp 13,99,7,0,0,58,57,81,77,62,13,14,12,0,4,0,9,13,1,7,8,3,0,3,-3,8,10,34,42,40,44,37,46,45,18,18,-44,-59,-158,-158,-158,-182,-176,-129,-138,-116,-231,-166,-250,-283,-282,-275,-236,-137,-150,-136,-158,-130,-138,-58,-129,0,0,0,0,0,0,0,-222,-8,-8,0,-125,-125,-125,-125,-125,-125,-125,-125,-144,-144,-143,0,-110,0,-128,0,-28]} 1. e4 {[%emt 0:00:08]} c5 {[%emt 0:00:25]} 2. c3 {[%emt 0:00:03]} d5 {[%emt 0:00:45]} 3. exd5 {[%emt 0:00:14]} Qxd5 {[%emt 0:00:07]} 4. d4 {[%emt 0:00:07]} Nf6 {[%emt 0:00:16]} 5. Na3 {[%emt 0:00:23]} a6 {[%emt 0:10:42]} 6. Nf3 {[%emt 0:00:34]} Bg4 {[%emt 0:01:01]} 7. dxc5 {[%emt 0:01:49]} Qxc5 {[%emt 0:09:57]} 8. h3 {[%emt 0:01:17] B22: Sicilian: 2 c3.} Bxf3 {[%emt 0:10:19]} (8... Bf5 $11) 9. Qxf3 $14 {[%emt 0:00:30]} Nc6 {[%emt 0:00:30]} 10. Be3 {[%emt 0:00:30] White is better.} Qd5 {[%emt 0:00:30] [#]} 11. Qxd5 $146 {[%emt 0:00:30]} (11. Be2 $14) ({Predecessor:} 11. Be2 Ne5 12. Qf4 Nd3+ 13. Bxd3 Qxd3 14. Rd1 Qe4 15. O-O e6 16. Nc4 Qxf4 17. Bxf4 {½-½ Stevanic,D (2261)-Markocic,T (2034) Nova Gorica op-A 26th 2022 (3)}) 11... Nxd5 $11 {[%emt 0:00:30]} 12. Bg5 {[%emt 0:14:26]} e6 {[%emt 0:02:46]} 13. Nc4 {[%emt 0:00:57]} Be7 {[%emt 0:03:58]} 14. Bd2 {[%emt 0:04:11]} Rd8 {[%emt 0:05:26]} 15. Be2 {[%emt 0:12:20]} b5 {[%emt 0:02:38]} 16. Ne3 {[%emt 0:09:17]} Nf4 {[%emt 0:01:00]} 17. g3 {[%emt 0:00:38]} Nxe2 {[%emt 0:02:04]} 18. Kxe2 {[%emt 0:00:33]} Ne5 {[%emt 0:01:51]} 19. Rhd1 {[%emt 0:02:56]} Bc5 {[%emt 0:03:31]} 20. a4 {[%emt 0:06:33]} Ke7 {[%emt 0:12:11]} 21. axb5 {[%emt 0:00:54]} axb5 {[%emt 0:00:01]} 22. f4 {[%emt 0:05:03]} Nc6 {[%emt 0:03:25]} 23. Ra6 {[%emt 0:02:21]} (23. b4 $5 {[%cal Rb4c5]} Bxe3 24. Bxe3 $14) 23... Rd6 {[%emt 0:02:39]} 24. b4 {[%emt 0:05:10]} ({White should play} 24. Rda1 $11) 24... Bxe3 $15 {[%emt 0:02:49]} 25. Bxe3 {[%emt 0:00:04] [#]} (25. Kxe3 $15 Rhd8 26. g4) 25... Nd4+ $1 $17 {[%emt 0:01:18][%mdl 576] Discovered Attack} 26. Bxd4 {[%emt 0:01:47]} Rxa6 {[%emt 0:00:04][%mdl 4096] Endgame KRR-KRB} 27. Bc5+ {[%emt 0:02:03]} Kf6 {[%emt 0:00:18]} (27... Ke8 $19 28. f5 f6 29. fxe6 Rxe6+ 30. Kf3 Kf7 31. Rd7+ Kg6) 28. Rd7 {[%emt 0:01:06]} Ra2+ {[%emt 0:05:13]} 29. Kd3 {[%emt 0:01:00]} (29. Kf3 $17) 29... Rg2 {[%emt 0:01:45]} 30. Bd4+ {[%emt 0:02:04]} (30. g4 $142) 30... Kg6 $19 {[%emt 0:00:14]} 31. g4 {[%emt 0:01:48]} f6 {[%emt 0:12:12]} ({Don't go for} 31... Rg3+ $2 32. Ke4 $19) 32. Ke4 {[%emt 0:04:57]} Rg3 {[%emt 0:00:45]} (32... Re2+ $19 33. Be3 Re1) 33. f5+ $17 {[%emt 0:01:34]} exf5+ {[%emt 0:00:04]} 34. gxf5+ {[%emt 0:01:02]} Kh5 {[%emt 0:02:13]} 35. Kf4 {[%emt 0:07:27]} Rg5 {[%emt 0:00:11]} (35... Rg2 $17 {Hoping for ...h6.} 36. Rb7 Re8 37. Rxb5 Kh4) 36. Rb7 $15 {[%emt 0:03:04]} Kh4 {[%emt 0:00:24]} (36... Re8 $1 $17 37. Bxf6 (37. Rxb5 Kh4 $17) 37... Rg1) 37. Rxg7 $1 $11 {[%emt 0:00:58][%mdl 64] Remove Defender, Decoy} Rxg7 {[%emt 0:03:06]} 38. Bxf6+ {[%emt 0:00:08]} Kh5 {[%emt 0:00:55]} 39. Bxg7 {[%emt 0:00:09] KR-KB} Rc8 {[%emt 0:00:43]} 40. h4 $2 {[%emt 0:00:00]} Re8 $2 {[%emt 0:00:00]} (40... Kxh4 $19 {...Kh5 would be deadly.} 41. Bd4 Kh5) 41. Be5 {[%emt 0:08:13]} Rc8 {[%emt 0:10:09]} 42. f6 {[%emt 0:01:57]} (42. Bg7 $11 {remains equal.}) 42... Kg6 $1 $17 {[%emt 0:02:04][%mdl 1024] Black has strong compensation.} 43. Ke4 {[%emt 0:02:57] [#]} Rd8 {[%emt 0:06:36]} 44. Bd4 {[%emt 0:01:47]} Kf7 {[%emt 0:04:04]} 45. Ke5 {[%emt 0:03:23] [#]} Rd7 $1 {[%emt 0:01:10]} 46. Kf5 {[%emt 0:09:14]} Rd5+ {[%emt 0:00:20]} 47. Be5 {[%emt 0:01:32]} Rd7 {[%emt 0:00:24]} 48. Bd4 {[%emt 0:00:15]} Rd5+ {[%emt 0:00:07]} 49. Be5 $1 {[%emt 0:00:09]} Rd7 {[%emt 0:00:03]} ({Black should try} 49... h5 $17 50. Ke4 Ke6) 50. Bd4 {[%emt 0:01:26] Weighted Error Value: White=0.25 (precise) /Black=0.33} 1/2-1/2

[Event "European Women-ch 2023"]
[Site "Petrovac"]
[Date "2023.03.20"]
[Round "3.13"]
[White "Osmak, Yuliia"]
[Black "Ovod, Evgenija"]
[Result "1-0"]
[ECO "D31"]
[WhiteElo "2445"]
[BlackElo "2305"]
[Annotator "TA"]
[PlyCount "131"]
[EventDate "2023.03.15"]
[EventType "swiss"]
[EventCountry "MNE"]
[SourceTitle "playchess.com"]
[Source "ChessBase"]
[SourceQuality "1"]
[TimeControl "40/5400+30:1800+30"]

{[%evp 15,131,0,0,0,0,0,0,0,0,0,0,0,71,58,77,32,90,89,84,66,131,34,74,27,51,24,146,145,164,156,171,152,144,150,137,131,146,129,126,72,82,50,49,49,47,47,47,48,112,124,189,167,298,322,331,325,315,248,256,256,257,193,289,269,476,144,749,745,685,624,735,792,695,679,774,733,29973,29978,12835,1816,6540,654,606,0,805,747,714,655,12839,12839,12839,12835,12835,12835,29984,29971,12841,2725,1822,1489,12842,12842,29985,29986,29985,12846,29987,29988,29989,29990,29990,29990,29990,29991,29991,29991,29991,29992]} 1. d4 {[%emt 0:02:21]} d5 {[%emt 0:00:06]} 2. c4 {[%emt 0:00:07]} e6 {[%emt 0:00:05]} 3. Nc3 {[%emt 0:00:05]} Be7 {[%emt 0:00:07]} 4. cxd5 {[%emt 0:00:09]} exd5 {[%emt 0:00:06]} 5. Bf4 {[%emt 0:00:03]} c6 {[%emt 0:00:08]} 6. e3 {[%emt 0:00:04]} Bf5 {[%emt 0:00:09]} 7. Nge2 {[%emt 0:00:31]} Nd7 {[%emt 0:00:16]} 8. Ng3 {[%emt 0:00:04]} Bg6 {[%emt 0:00:14]} 9. Be2 {[%emt 0:00:22] D31: Queen's Gambit Declined: Semi-Slav without ...Nf6 (+ Marshall Gambit and Noteboom) and Exchange Variation lines without ...Nf6.} Qb6 {[%emt 0:00:21]} 10. Qd2 {[%emt 0:01:14]} Ngf6 {[%emt 0:00:24]} 11. h4 {[%emt 0:04:13] The position is equal.} h5 {[%emt 0:00:09]} 12. Rc1 {[%emt 0:07:07]} O-O {[%emt 0:03:07]} 13. O-O {[%emt 0:02:43] [#]} Nh7 $146 {[%emt 0:10:11]} (13... a5 $11 {remains equal.}) ({Predecessor:} 13... Rfe8 14. Rfd1 Nf8 15. Na4 Qd8 16. Nc5 Qc8 17. Nd3 a5 18. Bf3 Ne4 19. Bxe4 dxe4 {0-1 Gunkel,W (2114)-Zejewski,P (2182) GER Cup17 final email 2011}) 14. Nxh5 $16 {[%emt 0:09:19]} Bxh4 {[%emt 0:00:11]} 15. Bd6 {[%emt 0:01:05] Inhibits Qb4.} (15. g3 $5 {[%cal Rg3h4]} Be7 16. Kg2 $14) 15... Rfe8 {[%emt 0:00:28]} ({Black should try} 15... Bxh5 $1 $14 16. Bxf8 (16. Bxh5 Rfe8 $14) 16... Bxe2) 16. Nf4 {[%emt 0:01:48]} Bf5 {[%emt 0:05:55]} 17. g4 {[%emt 0:01:52]} Be6 {[%emt 0:00:09]} (17... Bg6 $14) 18. Ng2 {[%emt 0:11:30]} (18. Nxe6 $1 $16 fxe6 19. f4) 18... Be7 {[%emt 0:01:04]} 19. Bxe7 {[%emt 0:01:58]} (19. Bg3 $16) 19... Rxe7 $11 {[%emt 0:00:05]} 20. f4 {[%emt 0:01:10][%cal Bf2f4,Bf4f5][%mdl 32] Strongly threatening f5.} f6 {[%emt 0:01:31]} (20... Ndf8 $11) 21. Kf2 $1 $16 {[%emt 0:03:05]} g5 {[%emt 0:10:43]} 22. Rh1 {[%emt 0:14:46]} Rg7 {[%emt 0:08:45]} 23. f5 {[%emt 0:09:55]} Bf7 {[%emt 0:00:04]} 24. Ne1 {[%emt 0:00:27] White is more active.} Nhf8 {[%emt 0:01:00]} 25. Nd3 {[%emt 0:00:38]} Rh7 {[%emt 0:06:33]} 26. Bf3 {[%emt 0:00:52]} Kg7 {[%emt 0:01:32]} 27. Kg2 {[%emt 0:11:40]} ({Better is} 27. Qe1) 27... Re8 {[%emt 0:05:06]} 28. b4 {[%emt 0:01:02]} Qd8 {[%emt 0:00:51]} 29. Rxh7+ {[%emt 0:05:03]} Nxh7 {[%emt 0:01:01]} 30. Nc5 {[%emt 0:02:00]} Nxc5 {[%emt 0:13:15]} 31. bxc5 {[%emt 0:01:48]} Nf8 {[%emt 0:00:43] White stays focused until the end.} (31... Qe7 $14) 32. e4 $1 {[%emt 0:02:16]} Nd7 {[%emt 0:22:05]} (32... dxe4 $16 33. Nxe4 Re7) 33. exd5 $18 {[%emt 0:01:13]} cxd5 {[%emt 0:00:04] [#]} (33... Bxd5 $142 34. Nxd5 cxd5) 34. Nb5 $1 {[%emt 0:03:44]} (34. Nxd5 Rh8 $16) (34. Bxd5 Bxd5+ 35. Nxd5 Nb6 $11) 34... Rh8 {[%emt 0:02:36]} 35. Nd6 {[%emt 0:00:02]} (35. Nxa7 $2 Qb8 36. Kg1 Rh3 $19) 35... Qc7 {[%emt 0:00:23]} 36. Rh1 {[%emt 0:00:59]} Rxh1 {[%emt 0:05:14]} 37. Kxh1 {[%emt 0:00:01]} Nb8 {[%emt 0:00:02]} 38. Qg2 {[%emt 0:00:29]} Qe7 {[%emt 0:03:08]} (38... Nc6 {is a better defense.}) 39. Nxf7 {[%emt 0:00:45]} (39. Bxd5 Qe1+ 40. Kh2 Qh4+ 41. Kg1 Qe1+ 42. Kh2 Qh4+ 43. Kg1 Qe1+ 44. Kh2 $11) 39... Qe1+ $2 {[%emt 0:00:04]} (39... Kxf7 {was worth a try.} 40. Bxd5+ Kf8 41. Bxb7 Qe1+ 42. Kh2 Nd7) 40. Kh2 $2 {[%emt 0:00:00]} (40. Qg1 $18 {and the rest is easy.} Qc3 41. Qd1 (41. Bxd5 Qh3+ 42. Qh2 Qf1+ 43. Qg1 Qh3+ 44. Qh2 Qf1+ 45. Qg1 Qh3+ $11) 41... Kxf7 42. Bxd5+ Kf8 43. Bxb7) 40... Qh4+ {[%emt 0:00:00][%mdl 8192]} (40... Kxf7 $16 41. Bxd5+ Ke7) 41. Qh3 {[%emt 0:01:04]} Qf2+ {[%emt 0:00:46]} 42. Bg2 {[%emt 0:01:58] Black must now prevent Nd8.} Nc6 {[%emt 0:13:44] Dodges Nd8} 43. Qg3 {[%emt 0:06:45]} Qxd4 {[%emt 0:00:10]} 44. Qc7 $1 {[%emt 0:00:23][%csl LRb7,LRg5]} Kf8 {[%emt 0:01:00]} 45. Nd8 {[%emt 0:06:49]} ({Not} 45. Qxb7 Qf4+ 46. Kh1 Qc1+ 47. Kh2 Qf4+ 48. Kh3 Qe3+ 49. Kh2 Qf4+ $11) 45... Nxd8 {[%emt 0:03:17]} 46. Qxd8+ {[%emt 0:00:04]} Kg7 {[%emt 0:00:05]} 47. Qxd5 {[%emt 0:00:35]} (47. Qc7+ $142 Kf8 48. Qc8+ (48. Qxb7 Qe5+ 49. Kh3 Qe3+ 50. Kh2 Qe5+ 51. Kh1 Qe1+ 52. Kh2 Qe5+ $11) 48... Ke7 49. Qxb7+ Kf8 50. Qc8+ Ke7 51. Qc7+ Ke8 52. c6 (52. Qxa7 Qe5+ 53. Kh1 Qa1+ 54. Kh2 Qe5+ 55. Kh3 Qe3+ 56. Kh2 Qe5+ $11)) 47... Qf4+ {[%emt 0:01:41]} 48. Kh3 {[%emt 0:00:18]} Qf2 {[%emt 0:00:07][%csl Gg5][%cal Rf2h4]} 49. Kh2 $2 {[%emt 0:02:53]} ({White should play} 49. Qxb7+ $18 Kh6 50. Be4 (50. Qxa7 $2 Qh4#)) 49... Qh4+ $2 {[%emt 0:07:31][%mdl 8192]} (49... Qf4+ $11 50. Kg1 Qe3+ 51. Kf1 Kf8) 50. Kg1 {[%emt 0:00:28]} Qe1+ {[%emt 0:00:08] [#]} 51. Bf1 $1 {[%emt 0:00:11]} Qe3+ {[%emt 0:01:39]} 52. Kg2 {[%emt 0:01:34]} Kh6 {[%emt 0:00:37]} 53. Qe6 {[%emt 0:01:59]} Qd4 {[%emt 0:03:03]} 54. Be2 {[%emt 0:00:14] White threatens Qf7 and mate.} Qb2 {[%emt 0:00:26]} 55. Qe8 {[%emt 0:02:38][%csl Gf5][%cal Re8g6]} Kg7 {[%emt 0:00:17]} 56. Kf3 {[%emt 0:01:35]} Qa3+ {[%emt 0:01:37]} 57. Qe3 {[%emt 0:00:13]} Qxa2 {[%emt 0:01:27]} 58. Qe7+ {[%emt 0:00:18]} Kg8 {[%emt 0:01:59]} 59. Qe6+ {[%emt 0:00:42]} Qxe6 {[%emt 0:00:09]} 60. fxe6 {[%emt 0:00:02] Threatening mate with Ke4. KB-KP} Kf8 {[%emt 0:00:07]} 61. Ke4 {[%emt 0:00:10] White mates.} Ke7 {[%emt 0:00:14]} 62. Kf5 {[%emt 0:00:03]} a6 {[%emt 0:00:40]} 63. Bf3 {[%emt 0:00:07]} a5 {[%emt 0:00:05]} 64. Bxb7 {[%emt 0:00:08]} a4 {[%emt 0:00:11]} 65. Bd5 {[%emt 0:00:03]} a3 {[%emt 0:00:06]} 66. Ba2 {[%emt 0:00:03] Weighted Error Value: White=0.26 (precise) /Black=0.49} 1-0

[Event "European Women-ch 2023"]
[Site "Petrovac"]
[Date "2023.03.20"]
[Round "3.13"]
[White "Spalir, Monika"]
[Black "Golsta, Ramona"]
[Result "0-1"]
[ECO "B33"]
[WhiteElo "2125"]
[BlackElo "1760"]
[Annotator "TA"]
[PlyCount "116"]
[EventDate "2023.03.15"]
[EventType "swiss"]
[EventCountry "MNE"]
[SourceTitle "playchess.com"]
[Source "ChessBase"]
[SourceQuality "1"]
[TimeControl "40/5400+30:1800+30"]

{[%evp 23,116,13,16,10,13,18,17,9,18,15,23,14,18,0,21,0,0,0,0,-10,16,-19,23,32,26,18,13,-35,-24,-68,-56,-78,-68,-75,-39,-51,12,0,20,0,0,0,0,0,0,0,0,0,0,-115,-37,-44,0,0,0,0,0,-10,0,-12,-8,-10,0,0,0,-2333,-2029,-29967,-29968,-29962,-12531,-29969,-29973,-29969,-12725,-29975,-29976,-29977,-29980,-29979,-29980,-29981,-29982,-29982,-29983,-29982,-29983,-29993,-29994,-29995,-29995,-29995,-29996,-29997,-1435]} 1. e4 {[%emt 0:00:03]} c5 {[%emt 0:00:05]} 2. Nf3 {[%emt 0:00:03][%cal Bg1f3,Bf3d4,Bd4b5,Bb5a3,Ba3c2][%mdl 32]} Nc6 {[%emt 0:00:05]} 3. d4 {[%emt 0:00:05]} cxd4 {[%emt 0:00:04]} 4. Nxd4 {[%emt 0:00:04]} Nf6 {[%emt 0:00:08]} 5. Nc3 {[%emt 0:00:09]} e5 {[%emt 0:00:09]} 6. Ndb5 {[%emt 0:00:04]} d6 {[%emt 0:00:11]} 7. Bg5 {[%emt 0:00:09]} a6 {[%emt 0:00:06]} 8. Na3 {[%emt 0:00:03]} b5 {[%emt 0:00:07]} 9. Nd5 {[%emt 0:00:09]} Be7 {[%emt 0:00:07]} 10. Bxf6 {[%emt 0:00:06]} Bxf6 {[%emt 0:00:13]} 11. c4 {[%emt 0:00:05]} b4 {[%emt 0:23:37]} 12. Nc2 {[%emt 0:00:27]} Rb8 {[%emt 0:32:08]} 13. Qd3 {[%emt 0:04:06] B33: Sicilian: Pelikan and Sveshnikov Variations.} Bg5 {[%emt 0:00:00]} 14. g3 {[%emt 0:03:05] [#]} h5 $146 {[%emt 0:00:00]} ({Predecessor:} 14... O-O 15. h4 Bh6 16. Bh3 Bxh3 17. Rxh3 Qd7 18. g4 Bf4 19. Qf3 Qe6 20. b3 a5 21. Nxf4 exf4 22. Qxf4 {1-0 Hechl,F (2017)-Baecker,N (1925) AUT-chT2O 2223 2022 (1.2)}) 15. h4 {[%emt 0:06:12] The position is equal.} Bh6 {[%emt 0:00:00]} 16. Bg2 {[%emt 0:02:06]} O-O {[%emt 0:01:00]} 17. O-O {[%emt 0:02:44]} Be6 {[%emt 0:06:23]} 18. Rfd1 {[%emt 0:03:00]} a5 {[%emt 0:05:59]} 19. b3 {[%emt 0:05:29]} g6 {[%emt 0:04:00]} 20. Nde3 {[%emt 0:03:47]} Qb6 {[%emt 0:01:07]} 21. Qf1 {[%emt 0:03:54]} (21. Qxd6 $2 Rbd8 22. Nd5 (22. c5 $2 Qb7 $19) 22... Bxd5 $19) 21... Rfd8 {[%emt 0:02:59]} 22. Bh3 {[%emt 0:01:58]} Nd4 {[%emt 0:05:31]} 23. Nxd4 {[%emt 0:01:53]} exd4 {[%emt 0:00:07]} 24. Nd5 {[%emt 0:03:46]} (24. Nc2 $5 {[%cal Rh3e6]}) 24... Bxd5 {[%emt 0:01:11]} 25. cxd5 {[%emt 0:02:49]} (25. exd5 $11 Bg7 26. Qd3) 25... Rb7 $15 {[%emt 0:01:03]} 26. Rd3 {[%emt 0:13:58]} Rc7 {[%emt 0:01:34]} 27. g4 {[%emt 0:02:07] White is weak on the dark squares} hxg4 {[%emt 0:02:32] Black is more active.} 28. Bxg4 {[%emt 0:00:07]} Re8 {[%emt 0:02:43]} 29. Qg2 {[%emt 0:02:13]} Rc2 {[%emt 0:01:19]} (29... Kg7 $15) 30. h5 $11 {[%emt 0:12:02]} Be3 {[%emt 0:01:49]} 31. hxg6 {[%emt 0:02:45]} Rxf2 {[%emt 0:02:44]} (31... Bxf2+ $2 32. Kh1 f5 33. Bxf5 $18) 32. gxf7+ {[%emt 0:01:08]} Kxf7 {[%emt 0:02:09]} 33. Rf1 {[%emt 0:02:05]} Rxf1+ {[%emt 0:00:05]} 34. Kxf1 {[%emt 0:00:05]} Ke7 {[%emt 0:00:56]} 35. Bf5 {[%emt 0:01:54] Threatening mate with Qg7+.} Kd8 {[%emt 0:01:27] Hoping for ...Qc5.} (35... Qb5 36. Qg7+ Kd8 37. Ke2 $16) 36. Rd1 {[%emt 0:10:16] [#]} ({Much weaker is} 36. Qg7 Qc7 37. Qxc7+ (37. Qf6+ Qe7 $17) 37... Kxc7 $17) (36. Qg6 $1 $11 Qc7 37. Rd1 (37. Qf6+ Qe7 $17)) 36... Qb5+ {[%emt 0:00:57]} ({Black should play} 36... Rh8 $1 $17 {...Qb5+ is the strong threat.} 37. Qc2 Qa6+ 38. Kg2 Bf4) 37. Qe2 $15 {[%emt 0:00:51]} Qxe2+ {[%emt 0:00:54]} (37... Qc5 {keeps more tension.} 38. Qh5 Qc2 39. Qe2 Qc7) 38. Kxe2 {[%emt 0:00:01][%mdl 4096] Endgame KRB-KRB} Rh8 {[%emt 0:00:33]} 39. Kd3 {[%emt 0:01:11]} Rh2 {[%emt 0:01:20][%cal Od8e7]} 40. Kc4 {[%emt 0:00:00][%cal Oe4e5]} Rxa2 {[%emt 0:00:00]} 41. Kb5 {[%emt 0:06:06]} Ke7 {[%emt 0:14:06] Black wants to play ...Kf6.} 42. e5 {[%emt 0:00:55] Threatens to win with Kc6.} dxe5 {[%emt 0:01:08] Strongly threatening ...Rf2.} 43. Kc6 {[%emt 0:00:22] aiming for d6+.} Kf6 $1 {[%emt 0:09:31]} 44. Rf1 {[%emt 0:04:36][%mdl 8192] Black continues to play with concentration.} (44. Be4 $11 Rd2 45. Rf1+ Rf2 46. Re1 (46. Rxf2+ Bxf2 47. d6 Ke6 $11)) 44... Rf2 $19 {[%emt 0:00:18]} 45. Rxf2 {[%emt 0:00:48]} Bxf2 {[%emt 0:00:02] KB-KB} 46. Bh7 {[%emt 0:06:38] [#]} Kg5 $1 {[%emt 0:03:28] ( -> ...Kf4)} 47. d6 {[%emt 0:06:17]} Kf4 {[%emt 0:00:20]} 48. Kd5 {[%emt 0:02:57]} Bh4 {[%emt 0:00:32]} (48... Ke3 $142 49. Bf5 d3 50. Kc4 e4 51. Bg6 Bg3 52. Bf7 d2 53. Bh5 Bxd6 54. Bd1 Kf2 55. Bh5 Ke1 56. Bg4 d1=Q 57. Bxd1 Kxd1 58. Kd4 Kd2 59. Kxe4 Kc2 60. Kf5 Kxb3 61. Kf6 a4 62. Kg6 Kc4 63. Kh6 a3 64. Kg6 a2 65. Kh6 a1=Q 66. Kg6 Qe5 67. Kh6 Qf5 68. Kg7 Be5+ 69. Kh6 Qg4 70. Kh7 Qg7#) 49. d7 {[%emt 0:01:03]} Ke3 {[%emt 0:02:25] Black mates.} 50. Kxe5 {[%emt 0:08:39]} d3 {[%emt 0:00:11]} 51. Bg6 {[%emt 0:00:16]} Ke2 {[%emt 0:01:02]} 52. Kd4 {[%emt 0:04:29]} d2 {[%emt 0:00:49]} 53. Kc4 {[%emt 0:00:37]} d1=Q {[%emt 0:00:18]} 54. Bh5+ {[%emt 0:00:06]} Kd2 {[%emt 0:00:05]} 55. Kb5 {[%emt 0:00:31]} Qxh5+ {[%emt 0:00:08]} 56. Ka4 {[%emt 0:00:02]} Qf3 {[%emt 0:01:42]} 57. Kb5 {[%emt 0:00:05]} Qd5+ {[%emt 0:00:20]} 58. Ka4 {[%emt 0:00:32]} Qxd7+ {[%emt 0:00:08] Weighted Error Value: White=0.61/Black=0.19 (very precise)} (58... Qc6+ $142 59. Kxa5 Kc3 60. d8=B Bxd8#) 0-1